[Event "35th Staufer-Open-A 2025"]
[Site "Schwaebisch Gmuend"]
[Date "2025.01.05"]
[Round "7.19"]
[White "Klaska, Philipp Leon"]
[Black "Rindhiya V"]
[Result "1/2-1/2"]
[ECO "C90"]
[WhiteElo "2264"]
[BlackElo "1999"]
[Annotator "TA"]
[PlyCount "61"]
[EventDate "2024.11.24"]
[EventType "swiss"]
[EventCountry "GER"]
[SourceTitle "playchess.com"]
[Source "ChessBase"]
[SourceQuality "1"]
[TimeControl "40/6000+30:1200+30"]

{[%evp 14,61,36,24,31,30,41,33,37,46,46,45,43,10,15,0,0,0,11,0,8,0,56,0,59,58,108,86,82,58,57,43,37,32,29,19,13,13,16,35,14,15,19,14,22,23,30,0,0,2]} 1. e4 {[%emt 0:00:05]} e5 {[%emt 0:00:12]} 2. Nf3 {[%emt 0:00:30]} Nc6 {[%emt 0:00:04]} 3. Bb5 {[%emt 0:00:04]} a6 {[%emt 0:00:14]} 4. Ba4 {[%emt 0:00:08]} Nf6 {[%emt 0:00:08]} 5. O-O {[%emt 0:00:08]} Be7 {[%emt 0:00:04]} 6. Re1 {[%emt 0:00:13]} b5 {[%emt 0:00:18]} 7. Bb3 {[%emt 0:00:05]} d6 {[%emt 0:00:09]} 8. a4 {[%emt 0:00:10]} Bd7 {[%emt 0:00:53]} 9. c3 {[%emt 0:00:07]} Na5 {[%emt 0:03:50]} 10. Bc2 {[%emt 0:00:40]} c5 {[%emt 0:00:13]} 11. d4 {[%emt 0:02:48]} Nc6 {[%emt 0:24:23]} 12. h3 {[%emt 0:27:38]} O-O {[%emt 0:02:40]} 13. Bg5 {[%emt 0:06:41]} Qc7 {[%emt 0:10:10]} 14. dxc5 {[%emt 0:06:42]} dxc5 {[%emt 0:00:34]} 15. Nbd2 {[%emt 0:00:47]} h6 {[%emt 0:06:18]} 16. Be3 {[%emt 0:07:07]} Be6 {[%emt 0:05:57]} 17. Nh4 {[%emt 0:14:32]} c4 {[%emt 0:13:08]} ({Black should play} 17... Rfd8 $11) 18. Qf3 {[%emt 0:07:49]} (18. Nf5 $14) 18... Na5 {[%emt 0:21:10]} (18... Ng4 $1 $11 19. Nf5 Nxe3 20. Nxe3 Rfd8) 19. Nf5 $14 {[%emt 0:02:24]} Bxf5 {[%emt 0:01:54]} (19... Kh8 $14) 20. exf5 {[%emt 0:00:44]} b4 {[%emt 0:01:55]} 21. cxb4 {[%emt 0:10:19] White is more active.} Bxb4 {[%emt 0:00:20]} 22. Red1 {[%emt 0:00:16]} (22. Ne4 $5 Qc6 23. Nxf6+ Qxf6 24. Red1 $14) 22... Rab8 {[%emt 0:02:55]} 23. Ne4 {[%emt 0:02:06]} Be7 {[%emt 0:00:16]} 24. Rab1 {[%emt 0:02:23][%cal Ba1b1,Bb1c1,Bc1c2][%mdl 32]} (24. Qg3 {seems wilder.} Kh7 25. Qh4 Nxe4 26. f6) 24... Nb3 {[%emt 0:02:16]} 25. Qg3 {[%emt 0:03:29]} Kh8 {[%emt 0:02:50]} 26. Qh4 {[%emt 0:04:46][%cal Oe3h6]} Nxe4 $1 {[%emt 0:01:59]} 27. Qxe4 {[%emt 0:00:06][%cal Of5f6]} Bf6 {[%emt 0:00:11]} 28. Bxb3 {[%emt 0:01:08]} Rxb3 {[%emt 0:03:00]} 29. Rbc1 {[%emt 0:01:21]} Rc8 $1 {[%emt 0:00:38]} 30. Rd5 {[%emt 0:01:34] and Rc5 would now be decisive} Qc6 $1 {[%emt 0:01:43]} 31. Rc2 $1 {[%emt 0:08:28]} 1/2-1/2